[Event "POL-chT 2nd League Juniors 2020"]
[Site "Sypniewo"]
[Date "2020.10.24"]
[Round "3.3"]
[White "Lochinski, Pawel"]
[Black "Duda, Leon"]
[Result "1/2-1/2"]
[ECO "B30"]
[WhiteElo "1426"]
[BlackElo "1388"]
[Annotator "NA RC"]
[PlyCount "80"]
[EventDate "2020.10.23"]
[EventType "team-tourn"]
[EventCountry "POL"]
[SourceTitle "playchess.com"]
[Source "ChessBase"]
[SourceQuality "1"]
[TimeControl "5400+30"]

1. e4 {[%emt 0:00:00]} c5 {[%emt 0:00:00]} 2. Nf3 {[%emt 0:00:00]} Nc6 {[%emt 0:00:00]} 3. Bb5 {[%emt 0:00:00]} d6 {[%emt 0:01:34]} 4. O-O {[%emt 0:00:47]} Nf6 {[%emt 0:00:30]} 5. Re1 {[%emt 0:00:32]} Bd7 {[%emt 0:01:31]} 6. c3 {[%emt 0:10:24]} g6 {[%emt 0:07:44]} 7. Bxc6 {[%emt 0:09:55]} Bxc6 {[%emt 0:00:27]} 8. e5 {[%emt 0:00:18]} dxe5 {[%emt 0:01:09]} 9. Nxe5 {[%emt 0:00:42]} Bg7 {[%emt 0:00:33]} 10. Nxc6 {[%emt 0:00:14]} bxc6 {[%emt 0:00:06]} 11. d3 {[%emt 0:03:21]} O-O {[%emt 0:00:21]} 12. Be3 {[%emt 0:00:59]} Qb6 {[%emt 0:06:29]} 13. b4 {[%emt 0:05:21]} Nd7 {[%emt 0:02:37]} 14. Qc2 {[%emt 0:03:26]} a5 {[%emt 0:05:01]} 15. bxc5 {[%emt 0:01:24]} Nxc5 {[%emt 0:00:10]} 16. d4 {[%emt 0:04:48]} Nd7 {[%emt 0:00:43]} 17. Nd2 {[%emt 0:04:28]} Qc7 {[%emt 0:00:55]} 18. Rab1 {[%emt 0:09:01]} c5 {[%emt 0:02:25]} 19. d5 {[%emt 0:07:31]} c4 {[%emt 0:00:55]} 20. Bg5 {[%emt 0:01:16]} Nf6 {[%emt 0:00:48]} 21. Bxf6 {[%emt 0:06:46]} Bxf6 {[%emt 0:00:10]} 22. Ne4 {[%emt 0:00:13]} Be5 {[%emt 0:02:00]} 23. g3 {[%emt 0:02:11]} Rfd8 {[%emt 0:00:19]} 24. Red1 {[%emt 0:01:48]} Rd7 {[%emt 0:02:16]} 25. Rb5 {[%emt 0:03:19]} Rad8 {[%emt 0:01:26]} 26. Qa4 {[%emt 0:03:13]} h6 {[%emt 0:02:05]} 27. Rc5 {[%emt 0:03:43]} Qb7 {[%emt 0:01:25]} 28. Qxc4 {[%emt 0:00:23]} f5 {[%emt 0:01:39]} 29. d6+ {[%emt 0:03:57]} Kg7 {[%emt 0:00:17]} 30. Rxe5 {[%emt 0:00:09]} fxe4 {[%emt 0:00:08]} 31. Qxe4 {[%emt 0:00:05]} Qxe4 {[%emt 0:00:34]} 32. Rxe4 {[%emt 0:00:04]} exd6 {[%emt 0:00:09]} 33. Ra4 {[%emt 0:00:30]} Rc8 {[%emt 0:01:17]} 34. c4 {[%emt 0:00:35]} Kf6 {[%emt 0:00:54]} 35. Rd5 {[%emt 0:00:54]} Ke6 {[%emt 0:02:51]} 36. Rd4 {[%emt 0:02:30]} Rc5 {[%emt 0:01:11]} 37. f4 {[%emt 0:00:19]} Rb7 {[%emt 0:01:18]} 38. Rd2 {[%emt 0:02:58]} Rb4 {[%emt 0:00:21]} 39. Rxb4 {[%emt 0:00:25]} axb4 {[%emt 0:00:06]} 40. Rc2 {[%emt 0:00:07]} Kf5 {[%emt 0:00:32]} 1/2-1/2

[Event "POL-chT 2nd League Juniors 2020"]
[Site "Sypniewo"]
[Date "2020.10.24"]
[Round "3.4"]
[White "Karaszewski, Gabriel"]
[Black "Wojs, Alicja"]
[Result "1/2-1/2"]
[ECO "C00"]
[WhiteElo "1614"]
[BlackElo "1392"]
[Annotator "NA RC"]
[PlyCount "115"]
[EventDate "2020.10.23"]
[EventType "team-tourn"]
[EventCountry "POL"]
[SourceTitle "playchess.com"]
[Source "ChessBase"]
[SourceQuality "1"]
[TimeControl "5400+30"]

1. e4 {[%emt 0:00:00]} e6 {[%emt 0:00:00]} 2. d4 {[%emt 0:00:00]} d5 {[%emt 0:00:00]} 3. Bd3 {[%emt 0:00:00]} c5 {[%emt 0:00:35]} 4. exd5 {[%emt 0:00:00]} exd5 {[%emt 0:00:15]} 5. Nf3 {[%emt 0:00:00]} Bg4 {[%emt 0:00:37]} 6. O-O {[%emt 0:00:05]} Nf6 {[%emt 0:00:14]} 7. Re1+ {[%emt 0:00:10]} Be7 {[%emt 0:00:11]} 8. dxc5 {[%emt 0:00:06]} O-O {[%emt 0:00:12]} 9. Nbd2 {[%emt 0:00:18]} Bxc5 {[%emt 0:00:45]} 10. Nb3 {[%emt 0:00:07]} Bb6 {[%emt 0:00:26]} 11. h3 {[%emt 0:00:13]} Bh5 {[%emt 0:01:35]} 12. Be3 {[%emt 0:00:12]} Nc6 {[%emt 0:02:00]} 13. g4 {[%emt 0:01:58]} Bg6 {[%emt 0:01:48]} 14. Bxg6 {[%emt 0:00:08]} hxg6 {[%emt 0:00:53]} 15. Nbd4 {[%emt 0:03:57]} Ne4 {[%emt 0:02:31]} 16. c3 {[%emt 0:01:54]} Bc7 {[%emt 0:02:20]} 17. Nxc6 {[%emt 0:08:31]} bxc6 {[%emt 0:00:50]} 18. Qa4 {[%emt 0:00:42]} Qf6 {[%emt 0:01:25]} 19. Kg2 {[%emt 0:01:29]} Bb6 {[%emt 0:03:14]} 20. Bd4 {[%emt 0:03:21]} Bxd4 {[%emt 0:02:15]} 21. Qxd4 {[%emt 0:00:08]} Rab8 {[%emt 0:03:03]} 22. Re2 {[%emt 0:03:02]} Rb6 {[%emt 0:02:52]} 23. Rc1 {[%emt 0:02:00]} Rd8 {[%emt 0:03:25]} 24. c4 {[%emt 0:07:05]} c5 {[%emt 0:04:14]} 25. Qxf6 {[%emt 0:00:25]} Nxf6 {[%emt 0:00:11]} 26. cxd5 {[%emt 0:00:06]} Nxd5 {[%emt 0:00:33]} 27. Kg3 {[%emt 0:01:22]} Nb4 {[%emt 0:01:23]} 28. a3 {[%emt 0:05:15]} Na6 {[%emt 0:02:56]} 29. Re7 {[%emt 0:09:41]} Rxb2 {[%emt 0:04:27]} 30. Rxa7 {[%emt 0:00:48]} Rb6 {[%emt 0:00:45]} 31. Kg2 {[%emt 0:01:39]} Rdb8 {[%emt 0:03:27]} 32. Ne5 {[%emt 0:00:46]} R8b7 {[%emt 0:00:36]} 33. Ra8+ {[%emt 0:00:11]} Rb8 {[%emt 0:00:10]} 34. Rxb8+ {[%emt 0:00:04]} Rxb8 {[%emt 0:00:10]} 35. Rc3 {[%emt 0:00:48]} Rc8 {[%emt 0:02:51]} 36. Kf3 {[%emt 0:01:12]} Kf8 {[%emt 0:02:38]} 37. Ke4 {[%emt 0:00:22]} Ke7 {[%emt 0:00:22]} 38. Kd5 {[%emt 0:00:12]} Nc7+ {[%emt 0:00:38]} 39. Kc6 {[%emt 0:02:11]} Ne6+ {[%emt 0:00:50]} 40. Kb7 {[%emt 0:00:42]} Rc7+ {[%emt 0:02:04]} 41. Kb6 {[%emt 0:00:13]} Kd6 {[%emt 0:02:07]} 42. Nd3 {[%emt 0:01:55]} Rc6+ {[%emt 0:01:15]} 43. Kb5 {[%emt 0:04:19]} Nc7+ {[%emt 0:01:06]} 44. Kc4 {[%emt 0:01:22]} Nd5 {[%emt 0:00:40]} 45. Rc1 {[%emt 0:01:10]} Nb6+ {[%emt 0:00:52]} 46. Kb5 {[%emt 0:01:26]} Nd7 {[%emt 0:01:38]} 47. Rd1 {[%emt 0:03:11]} Rb6+ {[%emt 0:00:31]} 48. Kc4 {[%emt 0:00:18]} Kc6 {[%emt 0:00:38]} 49. Re1 {[%emt 0:01:37]} Kd6 {[%emt 0:00:43]} 50. f4 {[%emt 0:00:40]} f6 {[%emt 0:00:40]} 51. g5 {[%emt 0:01:41]} Ra6 {[%emt 0:00:55]} 52. Kb3 {[%emt 0:04:13]} Rb6+ {[%emt 0:00:49]} 53. Ka2 {[%emt 0:00:35]} Rb8 {[%emt 0:00:54]} 54. gxf6 {[%emt 0:01:06]} gxf6 {[%emt 0:00:27]} 55. Rg1 {[%emt 0:00:12]} Rh8 {[%emt 0:00:18]} 56. Rg3 {[%emt 0:00:28]} Kd5 {[%emt 0:00:39]} 57. Nf2 {[%emt 0:00:16]} Rh4 {[%emt 0:00:51]} 58. Rf3 {[%emt 0:04:05]} 1/2-1/2

[Event "POL-chT 2nd League Juniors 2020"]
[Site "Sypniewo"]
[Date "2020.10.24"]
[Round "3.5"]
[White "Lach, Alicja"]
[Black "Lascar, Maria Elena"]
[Result "0-1"]
[ECO "B28"]
[WhiteElo "1161"]
[BlackElo "1552"]
[Annotator "NA"]
[PlyCount "58"]
[EventDate "2020.10.23"]
[EventType "team-tourn"]
[EventCountry "POL"]
[SourceTitle "playchess.com"]
[Source "ChessBase"]
[SourceQuality "1"]
[TimeControl "5400+30"]

1. e4 {[%emt 0:00:00]} c5 {[%emt 0:00:00]} 2. Nf3 {[%emt 0:00:00]} a6 {[%emt 0:00:00]} 3. d4 {[%emt 0:00:15]} cxd4 {[%emt 0:02:15]} 4. Nxd4 {[%emt 0:00:06]} Nf6 {[%emt 0:00:08]} 5. Nc3 {[%emt 0:00:55]} e5 {[%emt 0:00:14]} 6. Nb3 {[%emt 0:01:51]} Bb4 {[%emt 0:00:28]} 7. Bd3 {[%emt 0:01:11]} d5 {[%emt 0:00:12]} 8. exd5 {[%emt 0:01:03]} Qxd5 {[%emt 0:00:35]} 9. Bd2 {[%emt 0:00:29]} Qxg2 {[%emt 0:02:49]} 10. Rf1 {[%emt 0:01:52]} O-O {[%emt 0:06:45]} 11. a3 {[%emt 0:02:46]} Bxc3 {[%emt 0:01:05]} 12. Bxc3 {[%emt 0:00:10]} Ng4 {[%emt 0:03:57]} 13. Nd2 {[%emt 0:04:23]} f5 {[%emt 0:10:48]} 14. Bc4+ {[%emt 0:06:50]} Kh8 {[%emt 0:00:11]} 15. Nf3 {[%emt 0:03:25]} Nc6 {[%emt 0:06:46]} 16. Qe2 {[%emt 0:05:55]} e4 {[%emt 0:08:41]} 17. Nh4 {[%emt 0:03:48]} Qh3 {[%emt 0:01:27]} 18. Nxf5 {[%emt 0:01:05]} Bxf5 {[%emt 0:01:15]} 19. O-O-O {[%emt 0:02:27]} Nge5 {[%emt 0:05:12]} 20. Bd5 {[%emt 0:01:09]} Bg4 {[%emt 0:01:43]} 21. Qxe4 {[%emt 0:01:27]} Bxd1 {[%emt 0:00:25]} 22. Rxd1 {[%emt 0:00:13]} Rae8 {[%emt 0:01:43]} 23. Rg1 {[%emt 0:02:56]} Qxh2 {[%emt 0:04:23]} 24. Rh1 {[%emt 0:09:29]} Qf4+ {[%emt 0:00:09]} 25. Qxf4 {[%emt 0:00:28]} Rxf4 {[%emt 0:00:01]} 26. Rh2 {[%emt 0:00:08]} Nd4 {[%emt 0:07:24]} 27. Bxd4 {[%emt 0:01:43]} Rxd4 {[%emt 0:00:02]} 28. Bxb7 {[%emt 0:00:32]} Ng4 {[%emt 0:02:45]} 29. Rg2 {[%emt 0:00:34]} Re1# {[%emt 0:00:07]} 0-1

[Event "POL-chT 2nd League Juniors 2020"]
[Site "Sypniewo"]
[Date "2020.10.24"]
[Round "3.6"]
[White "Bialek, Alicja"]
[Black "Ziobrowska, Maja"]
[Result "0-1"]
[ECO "C25"]
[WhiteElo "1457"]
[BlackElo "1483"]
[Annotator "NA RC"]
[PlyCount "58"]
[EventDate "2020.10.23"]
[EventType "team-tourn"]
[EventCountry "POL"]
[SourceTitle "playchess.com"]
[Source "ChessBase"]
[SourceQuality "1"]
[TimeControl "5400+30"]

1. e4 {[%emt 0:00:00]} e5 {[%emt 0:00:00]} 2. Nc3 {[%emt 0:00:00]} Nc6 {[%emt 0:00:10]} 3. g3 {[%emt 0:00:00]} Nf6 {[%emt 0:00:13]} 4. Bg2 {[%emt 0:00:00]} d6 {[%emt 0:01:01]} 5. Nge2 {[%emt 0:00:38]} Be7 {[%emt 0:00:32]} 6. d4 {[%emt 0:01:31]} exd4 {[%emt 0:04:20]} 7. Nxd4 {[%emt 0:00:09]} Nxd4 {[%emt 0:01:38]} 8. Qxd4 {[%emt 0:00:08]} Be6 {[%emt 0:00:08]} 9. O-O {[%emt 0:21:09]} Qd7 {[%emt 0:02:09]} 10. f4 {[%emt 0:05:40]} Bh3 {[%emt 0:02:34]} 11. b3 {[%emt 0:21:21]} Bxg2 {[%emt 0:01:23]} 12. Kxg2 {[%emt 0:00:03]} O-O {[%emt 0:00:35]} 13. Bb2 {[%emt 0:00:15]} Rfe8 {[%emt 0:01:01]} 14. Nd5 {[%emt 0:05:08]} c5 {[%emt 0:08:17]} 15. Qd3 {[%emt 0:02:09]} Nxd5 {[%emt 0:01:07]} 16. Qxd5 {[%emt 0:01:06]} Bf8 {[%emt 0:00:08]} 17. Rad1 {[%emt 0:01:36]} b6 {[%emt 0:01:56]} 18. e5 {[%emt 0:09:59]} Rad8 {[%emt 0:01:21]} 19. Rfe1 {[%emt 0:15:30]} Qf5 {[%emt 0:03:04]} 20. Re2 {[%emt 0:03:04]} h6 {[%emt 0:03:34]} 21. Qd3 {[%emt 0:06:55]} Qc8 {[%emt 0:00:54]} 22. Qf3 {[%emt 0:01:16]} Qa6 {[%emt 0:01:43]} 23. a4 {[%emt 0:02:24]} dxe5 {[%emt 0:06:00]} 24. Rxe5 {[%emt 0:00:41]} Rxd1 {[%emt 0:01:15]} 25. Rxe8 {[%emt 0:01:03]} Rd2+ {[%emt 0:00:09]} 26. Kh3 {[%emt 0:00:02]} g6 {[%emt 0:04:02]} 27. Qc3 {[%emt 0:01:10]} Qf1+ {[%emt 0:00:53]} 28. Kg4 {[%emt 0:00:08]} Qd1+ {[%emt 0:00:12]} 29. Qf3 {[%emt 0:00:22]} h5+ {[%emt 0:00:14]} 0-1

[Event "POL-chT 2nd League Juniors 2020"]
[Site "Sypniewo"]
[Date "2020.10.24"]
[Round "3.7"]
[White "Piwowarczyk, Bartlomiej"]
[Black "Jedrusik, Adam"]
[Result "0-1"]
[ECO "E32"]
[WhiteElo "1773"]
[BlackElo "1891"]
[Annotator "NA RC"]
[PlyCount "72"]
[EventDate "2020.10.23"]
[EventType "team-tourn"]
[EventCountry "POL"]
[SourceTitle "playchess.com"]
[Source "ChessBase"]
[SourceQuality "1"]
[TimeControl "5400+30"]

{[%evp 8,60,-1,0,10,8,32767,32767,75,72,107,32767,92,32767,-12,32767,32767,32767,32767,32767,32767,-68,32767,32767,32767,32767,32767,32767,32767,-56,-53,-59,-14,-87,-69,-76,-86,-129,-79,-113,-58,-100,32767,-107,-106,-62,-62,-296,-319,-343,-405,-451,-500,32767,-709]} 1. d4 {[%emt 0:00:00]} Nf6 {[%emt 0:00:00]} 2. c4 {[%emt 0:00:00]} e6 {[%emt 0:00:00]} 3. Nc3 {[%emt 0:00:00]} Bb4 {[%emt 0:00:00]} 4. Qc2 {[%emt 0:00:06]} O-O {[%emt 0:00:00]} 5. Bg5 {[%emt 0:00:30]} h6 {[%emt 0:01:15]} 6. Bh4 {[%emt 0:00:36]} c5 {[%emt 0:00:40]} 7. dxc5 {[%emt 0:00:17]} g5 {[%emt 0:03:50] E32: Nimzo-Indian: Classical (4 Qc2): 4...0-0.} (7... Qa5 $11) 8. Bg3 {[%emt 0:01:01]} Qa5 {[%emt 0:07:23] [#]} 9. a3 $146 {[%emt 0:17:31]} ({Predecessor:} 9. Be5 Ng4 10. Bd6 Bxc5 11. Bxc5 Qxc5 12. e3 Nc6 13. h4 Nb4 14. Qd2 b6 15. hxg5 {1-0 (26) Aubert,C (1977)-Rogacewicz,M (1551) Helsingor 2016}) 9... Ne4 {[%emt 0:07:25]} (9... Bxc3+ $14 10. bxc3 Qxc5) 10. Be5 {[%emt 0:10:59]} Nxc3 {[%emt 0:01:09]} 11. Bxc3 {[%emt 0:04:02]} Bxc3+ {[%emt 0:00:02]} 12. Qxc3 {[%emt 0:03:32]} Qxc3+ {[%emt 0:00:08]} 13. bxc3 {[%emt 0:00:03]} Na6 {[%emt 0:00:04]} 14. e3 {[%emt 0:02:04]} Nxc5 {[%emt 0:00:06]} 15. Nf3 {[%emt 0:00:35]} b6 {[%emt 0:01:16]} 16. h4 {[%emt 0:04:13]} f6 {[%emt 0:01:00]} 17. hxg5 {[%emt 0:01:55]} hxg5 {[%emt 0:00:01]} 18. Nd4 {[%emt 0:01:03]} Ba6 {[%emt 0:01:36]} 19. f3 {[%emt 0:06:01]} Rac8 {[%emt 0:00:58]} 20. Kf2 {[%emt 0:03:47]} (20. a4 $11 {keeps the balance.}) 20... Nb7 {[%emt 0:04:46]} 21. Bd3 {[%emt 0:01:39]} Bxc4 {[%emt 0:02:23]} 22. Bg6 {[%emt 0:01:06]} Nc5 {[%emt 0:03:59]} 23. Rh7 {[%emt 0:04:27]} Bd3 {[%emt 0:03:56]} 24. e4 {[%emt 0:00:23]} Bxe4 {[%emt 0:00:34]} 25. fxe4 {[%emt 0:03:06]} Nd3+ {[%emt 0:00:01] Discovered Attack} 26. Ke3 $1 {[%emt 0:07:19]} Ne5 {[%emt 0:00:32]} 27. Nf5 $2 {[%emt 0:06:54]} (27. Rah1 $15 Nxg6 28. Rxd7 Rxc3+ 29. Ke2) 27... exf5 {[%emt 0:01:36]} ({Don't play} 27... Rxc3+ 28. Kd2 $19) 28. exf5 {[%emt 0:00:16]} Rxc3+ {[%emt 0:00:32]} 29. Kd2 {[%emt 0:01:55]} Rfc8 {[%emt 0:00:46]} 30. Re1 {[%emt 0:18:27]} Rc2+ $19 {[%emt 0:01:07]} 31. Ke3 {[%emt 0:00:06]} R8c3+ {[%emt 0:00:04]} 32. Ke4 {[%emt 0:00:08]} d5+ {[%emt 0:00:44]} 33. Kxd5 {[%emt 0:00:33]} Rd3+ {[%emt 0:00:05]} 34. Ke6 {[%emt 0:01:03]} Rc6+ {[%emt 0:00:01]} 35. Ke7 {[%emt 0:00:49]} Rd7+ {[%emt 0:00:03]} 36. Ke8 {[%emt 0:00:07]} Rc8# {[%emt 0:00:02]} 0-1

[Event "POL-chT 2nd League Juniors 2020"]
[Site "Sypniewo"]
[Date "2020.10.24"]
[Round "3.8"]
[White "Dalkowski, Rafal"]
[Black "Pietrzak, Tomasz"]
[Result "1/2-1/2"]
[ECO "E16"]
[WhiteElo "1871"]
[BlackElo "1896"]
[Annotator "NA RC"]
[PlyCount "62"]
[EventDate "2020.10.23"]
[EventType "team-tourn"]
[EventCountry "POL"]
[SourceTitle "playchess.com"]
[Source "ChessBase"]
[SourceQuality "1"]
[TimeControl "5400+30"]

{[%evp 9,56,8,63,43,32767,26,23,23,27,32767,39,32767,32767,32767,32767,75,96,74,92,89,181,32767,148,90,32767,82,32767,83,81,22,32767,32767,32767,32767,41,54,43,32767,80,71,81,83,32767,75,76,76,87,52,80]} 1. d4 {[%emt 0:00:00]} Nf6 {[%emt 0:00:00]} 2. c4 {[%emt 0:00:00]} e6 {[%emt 0:00:00]} 3. Nf3 {[%emt 0:00:00]} Bb4+ {[%emt 0:00:00]} 4. Bd2 {[%emt 0:00:00]} Qe7 {[%emt 0:00:02]} 5. Qc2 {[%emt 0:00:35]} Nc6 {[%emt 0:07:23]} (5... Bxd2+ $11 6. Nbxd2 d6) 6. Nc3 {[%emt 0:11:09] E11: Bogo-Indian.} O-O {[%emt 0:15:15]} 7. e3 {[%emt 0:05:20]} d6 {[%emt 0:02:38]} 8. Be2 {[%emt 0:04:21]} Bxc3 {[%emt 0:09:39]} 9. Bxc3 {[%emt 0:00:42]} e5 {[%emt 0:01:45]} 10. d5 {[%emt 0:07:59] [#]} Nd8 $146 {[%emt 0:01:38]} ({Predecessor:} 10... Nb8 11. h3 Nbd7 12. b4 a5 13. a3 axb4 14. axb4 Rxa1+ 15. Bxa1 c6 16. dxc6 bxc6 17. O-O Bb7 18. Bc3 {½-½ (18) Timme,K (2103)-Von Herman,B (2039) Germany 2017}) 11. Nd2 {[%emt 0:10:31]} g6 {[%emt 0:10:36]} 12. e4 {[%emt 0:01:36]} Ne8 {[%emt 0:13:52]} 13. g4 {[%emt 0:03:03]} Qh4 {[%emt 0:09:55]} 14. h3 {[%emt 0:02:45]} f5 {[%emt 0:03:32]} (14... c6 $16) 15. Nf3 {[%emt 0:10:20]} Qe7 {[%emt 0:01:58] [#]} 16. gxf5 {[%emt 0:03:12]} (16. exf5 $1 $18 {is the precise move to win.} gxf5 17. O-O-O) 16... gxf5 {[%emt 0:00:08]} 17. O-O-O {[%emt 0:00:36]} f4 {[%emt 0:02:08]} 18. Rdg1+ {[%emt 0:02:18]} Kh8 {[%emt 0:00:33]} 19. Qd2 {[%emt 0:02:29]} (19. h4 $16) 19... Nf6 {[%emt 0:01:20]} 20. Bd3 {[%emt 0:03:30]} Bd7 {[%emt 0:01:10]} 21. c5 {[%emt 0:05:06]} Nf7 {[%emt 0:01:30]} 22. cxd6 {[%emt 0:00:19]} cxd6 {[%emt 0:00:27]} 23. h4 {[%emt 0:01:27]} Bg4 {[%emt 0:05:05]} 24. Ng5 {[%emt 0:01:06]} h6 {[%emt 0:00:50]} 25. f3 {[%emt 0:02:20]} Bh5 {[%emt 0:02:03]} 26. Be2 {[%emt 0:02:29]} Rg8 {[%emt 0:02:00]} 27. Ne6 {[%emt 0:00:31]} Kh7 {[%emt 0:01:40]} 28. Qc2 {[%emt 0:03:08]} Kh8 $16 {[%emt 0:02:26]} 29. Qd2 {[%emt 0:00:34]} Kh7 {[%emt 0:01:56]} 30. Qc2 {[%emt 0:00:10]} Kh8 {[%emt 0:00:36]} 31. Qd2 {[%emt 0:00:05]} Kh7 {[%emt 0:01:14]} 1/2-1/2

[Event "POL-chT 2nd League Juniors 2020"]
[Site "Sypniewo"]
[Date "2020.10.24"]
[Round "3.8"]
[White "Szuber, Dawid"]
[Black "Topola, Rafal"]
[Result "0-1"]
[ECO "B12"]
[WhiteElo "1496"]
[BlackElo "1827"]
[Annotator "NA"]
[PlyCount "90"]
[EventDate "2020.10.23"]
[EventType "team-tourn"]
[EventCountry "POL"]
[SourceTitle "playchess.com"]
[Source "ChessBase"]
[SourceQuality "1"]
[TimeControl "5400+30"]

{[%evp 11,87,0,5,7,7,-7,-8,-27,-25,-14,-9,-24,32767,32767,32767,32767,32767,32767,7,32767,32767,32767,32767,0,32767,-44,-27,-39,0,-12,-7,-64,32767,32767,-108,-116,-108,-218,-118,-152,-175,-193,-197,-211,-215,-222,-231,32767,32767,32767,32767,-342,-235,-387,-439,-404,-416,-484,-504,-539,-563,-533,-737,-585,-626,-694,-895,-904,-897,-960,-1356,-5502,-29960,-5502,-29976,-29979,-29982,-29981]} 1. e4 {[%emt 0:00:00]} c6 {[%emt 0:00:00]} 2. d4 {[%emt 0:00:00]} d5 {[%emt 0:00:00]} 3. e5 {[%emt 0:00:00]} Bf5 {[%emt 0:00:00]} 4. Bd3 {[%emt 0:00:07]} Bxd3 {[%emt 0:00:00]} 5. Qxd3 {[%emt 0:00:04]} e6 {[%emt 0:00:00]} 6. c3 {[%emt 0:01:01]} c5 {[%emt 0:00:40]} 7. Ne2 {[%emt 0:03:00]} Ne7 {[%emt 0:04:03] B12: Caro-Kann: Advance Variation.} 8. Ng3 {[%emt 0:02:03]} Nec6 {[%emt 0:00:55]} 9. Be3 {[%emt 0:10:38] [#]} Qb6 $146 {[%emt 0:03:38]} ({Predecessor:} 9... Nd7 10. a3 Qb6 11. b4 cxb4 12. cxb4 Rc8 13. O-O Be7 14. Nd2 O-O 15. Rab1 f5 16. f4 Qd8 17. Rfe1 a6 18. Nb3 b5 19. Nf1 Nb6 20. Nfd2 Nc4 21. Nc5 Bxc5 22. dxc5 {½-½ (22) Grzesik,G (1729)-Zabron,M (1579) Lazy 2017}) 10. Qd2 {[%emt 0:01:08]} Nd7 {[%emt 0:00:44]} 11. O-O {[%emt 0:00:52]} Be7 {[%emt 0:03:17]} 12. Ne2 {[%emt 0:02:43]} O-O {[%emt 0:01:35]} 13. f4 {[%emt 0:00:19]} cxd4 {[%emt 0:00:10]} 14. cxd4 {[%emt 0:00:25]} Bb4 {[%emt 0:06:31]} 15. Nbc3 {[%emt 0:00:21]} Ne7 {[%emt 0:00:06]} 16. g4 {[%emt 0:04:58]} f5 {[%emt 0:01:24]} 17. g5 {[%emt 0:01:03]} Rac8 {[%emt 0:00:53]} 18. a3 {[%emt 0:02:07]} Bxc3 $1 {[%emt 0:00:51]} 19. Nxc3 {[%emt 0:00:14]} Rc4 {[%emt 0:05:35]} 20. Rfc1 {[%emt 0:02:06]} Rfc8 {[%emt 0:01:49]} 21. Ne2 {[%emt 0:01:07]} Qb3 {[%emt 0:02:02]} 22. Rc3 {[%emt 0:02:18] [#]} Rxc3 $1 {[%emt 0:00:22]} 23. bxc3 {[%emt 0:03:21]} Nb6 {[%emt 0:00:24]} 24. Qa2 {[%emt 0:03:01] [#]} (24. Bf2 $17) 24... Qb5 {[%emt 0:03:06]} (24... Rxc3 $1 $19 25. Nxc3 Qxc3) 25. a4 {[%emt 0:01:24]} Qa5 {[%emt 0:01:28]} 26. Qb3 {[%emt 0:01:52]} Rc4 {[%emt 0:01:19]} 27. Qb5 {[%emt 0:01:06]} Nc6 {[%emt 0:00:05]} 28. Kf2 {[%emt 0:01:58]} Rxa4 {[%emt 0:03:34]} 29. Qxa5 {[%emt 0:03:31]} Nxa5 {[%emt 0:00:06]} 30. Rxa4 {[%emt 0:00:03]} Nxa4 {[%emt 0:00:06]} 31. Bc1 {[%emt 0:00:30]} Nc4 {[%emt 0:00:05]} 32. Ke1 $2 {[%emt 0:00:22]} (32. h4) 32... Kf7 {[%emt 0:00:24]} 33. Kd1 {[%emt 0:00:25]} Kg6 {[%emt 0:00:05]} 34. Ke1 {[%emt 0:00:17]} Kh5 {[%emt 0:01:34]} 35. Kf2 {[%emt 0:00:03]} Nab2 {[%emt 0:00:21]} 36. Bxb2 {[%emt 0:00:37]} Nxb2 {[%emt 0:00:02]} 37. Nc1 {[%emt 0:00:16]} Kg4 {[%emt 0:00:41]} 38. Ke3 {[%emt 0:01:03]} a5 {[%emt 0:00:21]} 39. Nb3 {[%emt 0:00:12]} b6 {[%emt 0:00:14]} 40. Nd2 {[%emt 0:01:05]} b5 {[%emt 0:02:53]} 41. Nb1 {[%emt 0:00:36]} Nc4+ {[%emt 0:00:17]} 42. Kd3 {[%emt 0:00:07]} Kxf4 {[%emt 0:00:18]} 43. h4 {[%emt 0:00:14]} a4 {[%emt 0:00:15]} 44. Kc2 {[%emt 0:00:19]} Kg4 {[%emt 0:00:16]} 45. g6 {[%emt 0:00:36]} hxg6 {[%emt 0:00:14]} 0-1